[Event "Titled Tuesday Blitz June 14 Early 2022"]
[White "Bharath Subramaniyam H"]
[Black "Kollars, Dmitrij"]
[WhiteFideId "46634827"]
[BlackFideId "12909572"]
[WhiteElo "2242"]
[BlackElo "2584"]
[Result "1/2-1/2"]
[Round "06"]
[TimeControl "180+1"]
[Date "2022.06.14"]
[WhiteClock "0:00:09"]
[BlackClock "0:00:42"]

1. c4 {[%clk 0:03:00]}  e5 {[%clk 0:02:58]} 2. Nf3 {[%clk 0:02:59]}  e4 {[%clk 0:02:56]} 3. Nd4 {[%clk 0:02:59]}  Nc6 {[%clk 0:02:56]} 4. e3 {[%clk 0:03:00]}  Nxd4 {[%clk 0:02:55]} 5. exd4 {[%clk 0:02:58]}  Nf6 {[%clk 0:02:56]} 6. Nc3 {[%clk 0:02:58]}  c6 {[%clk 0:02:48]} 7. d3 {[%clk 0:02:55]}  Bb4 {[%clk 0:02:46]} 8. Bd2 {[%clk 0:02:49]}  exd3 {[%clk 0:02:43]} 9. Bxd3 {[%clk 0:02:50]}  O-O {[%clk 0:02:41]} 10. O-O {[%clk 0:02:50]}  d5 {[%clk 0:02:42]} 11. c5 {[%clk 0:02:40]}  Re8 {[%clk 0:02:34]} 12. Bg5 {[%clk 0:02:34]}  h6 {[%clk 0:02:32]} 13. Bh4 {[%clk 0:02:34]}  Ba5 {[%clk 0:02:24]} 14. a3 {[%clk 0:02:26]}  Bc7 {[%clk 0:02:24]} 15. b4 {[%clk 0:02:26]}  a6 {[%clk 0:01:39]} 16. Qd2 {[%clk 0:01:35]}  Bxh2+ {[%clk 0:01:22]} 17. Kxh2 {[%clk 0:01:34]}  Ng4+ {[%clk 0:01:22]} 18. Kg3 {[%clk 0:01:34]}  g5 {[%clk 0:01:21]} 19. Bxg5 {[%clk 0:01:24]}  hxg5 {[%clk 0:01:18]} 20. Rae1 {[%clk 0:01:23]}  Qc7+ {[%clk 0:01:08]} 21. f4 {[%clk 0:01:20]}  Bd7 {[%clk 0:01:07]} 22. Re5 {[%clk 0:01:09]}  gxf4+ {[%clk 0:00:53]} 23. Qxf4 {[%clk 0:00:36]}  Nxe5 {[%clk 0:00:53]} 24. Rh1 {[%clk 0:00:28]}  Rac8 {[%clk 0:00:45]} 25. Rh8+ {[%clk 0:00:27]}  Kxh8 {[%clk 0:00:41]} 26. Qh6+ {[%clk 0:00:27]}  Kg8 {[%clk 0:00:42]} 27. Bh7+ {[%clk 0:00:24]}  Kh8 {[%clk 0:00:42]} 28. Bg6+ {[%clk 0:00:15]}  Kg8 {[%clk 0:00:42]} 29. Bh7+ {[%clk 0:00:08]}  Kh8 {[%clk 0:00:43]} 30. Bb1+ {[%clk 0:00:08]}  Kg8 {[%clk 0:00:42]} 31. Bh7+ {[%clk 0:00:09]} 1/2-1/2


[Site "https://www.chess.com"]

[Event "Titled Tuesday Blitz June 14 Early 2022"]
[White "Bluebaum, Matthias"]
[Black "Xiong, Jeffery"]
[WhiteFideId "24651516"]
[BlackFideId "2047640"]
[WhiteElo "2556"]
[BlackElo "2714"]
[Result "1/2-1/2"]
[Round "06"]
[TimeControl "180+1"]
[Date "2022.06.14"]
[WhiteClock "0:02:27"]
[BlackClock "0:02:41"]

1. d4 {[%clk 0:03:00]}  Nf6 {[%clk 0:03:00]} 2. c4 {[%clk 0:03:01]}  g6 {[%clk 0:03:00]} 3. Nc3 {[%clk 0:03:01]}  d5 {[%clk 0:03:01]} 4. cxd5 {[%clk 0:03:02]}  Nxd5 {[%clk 0:03:01]} 5. e4 {[%clk 0:03:03]}  Nxc3 {[%clk 0:03:02]} 6. bxc3 {[%clk 0:03:04]}  Bg7 {[%clk 0:03:03]} 7. Nf3 {[%clk 0:03:05]}  c5 {[%clk 0:03:03]} 8. Bb5+ {[%clk 0:03:05]}  Nc6 {[%clk 0:03:02]} 9. O-O {[%clk 0:03:06]}  O-O {[%clk 0:03:01]} 10. Bxc6 {[%clk 0:03:07]}  bxc6 {[%clk 0:03:02]} 11. Qc2 {[%clk 0:03:07]}  Ba6 {[%clk 0:02:56]} 12. Re1 {[%clk 0:03:04]}  Qa5 {[%clk 0:02:57]} 13. a4 {[%clk 0:03:05]}  cxd4 {[%clk 0:02:44]} 14. cxd4 {[%clk 0:03:04]}  Bxd4 {[%clk 0:02:45]} 15. Bd2 {[%clk 0:03:05]}  Qc5 {[%clk 0:02:45]} 16. Nxd4 {[%clk 0:03:04]}  Qxd4 {[%clk 0:02:45]} 17. Be3 {[%clk 0:02:48]}  Qc4 {[%clk 0:02:42]} 18. Qxc4 {[%clk 0:02:26]}  Bxc4 {[%clk 0:02:41]} 19. Rec1 {[%clk 0:02:27]} 1/2-1/2


[Site "https://www.chess.com"]

[Event "Titled Tuesday Blitz June 14 Early 2022"]
[White "Bortnyk, Mykola"]
[Black "Gubajdullin, Alexei"]
[WhiteFideId "14120836"]
[BlackFideId "4141202"]
[WhiteElo "2582"]
[BlackElo "2280"]
[Result "1-0"]
[Round "06"]
[TimeControl "180+1"]
[Date "2022.06.14"]
[WhiteClock "0:00:37"]
[BlackClock "0:00:34"]

1. e4 {[%clk 0:02:55]}  g6 {[%clk 0:02:59]} 2. d4 {[%clk 0:02:54]}  Bg7 {[%clk 0:02:59]} 3. Nc3 {[%clk 0:02:54]}  d6 {[%clk 0:02:58]} 4. Be3 {[%clk 0:02:47]}  c6 {[%clk 0:02:57]} 5. h3 {[%clk 0:02:44]}  Qb6 {[%clk 0:02:55]} 6. Bc4 {[%clk 0:02:39]}  Qxb2 {[%clk 0:02:51]} 7. Nge2 {[%clk 0:02:39]}  Qb4 {[%clk 0:02:50]} 8. Qd3 {[%clk 0:02:35]}  Nf6 {[%clk 0:02:47]} 9. O-O {[%clk 0:02:16]}  O-O {[%clk 0:02:43]} 10. a4 {[%clk 0:02:14]}  Qa5 {[%clk 0:02:42]} 11. Rfb1 {[%clk 0:02:11]}  d5 {[%clk 0:02:41]} 12. exd5 {[%clk 0:01:56]}  cxd5 {[%clk 0:02:38]} 13. Bxd5 {[%clk 0:01:57]}  Nxd5 {[%clk 0:02:33]} 14. Rb5 {[%clk 0:01:56]}  Nb4 {[%clk 0:02:30]} 15. Qc4 {[%clk 0:01:54]}  Be6 {[%clk 0:02:27]} 16. d5 {[%clk 0:01:50]}  Bxd5 {[%clk 0:02:22]} 17. Nxd5 {[%clk 0:01:43]}  Qd8 {[%clk 0:02:20]} 18. Qxb4 {[%clk 0:01:40]}  Bxa1 {[%clk 0:02:08]} 19. Nxe7+ {[%clk 0:01:40]}  Kg7 {[%clk 0:02:08]} 20. Qh4 {[%clk 0:01:26]}  Nd7 {[%clk 0:01:51]} 21. c3 {[%clk 0:01:16]}  h5 {[%clk 0:01:34]} 22. Rxh5 {[%clk 0:01:12]}  Rh8 {[%clk 0:01:19]} 23. Nf5+ {[%clk 0:00:54]}  gxf5 {[%clk 0:01:13]} 24. Qg3+ {[%clk 0:00:54]}  Kf6 {[%clk 0:01:07]} 25. Bg5+ {[%clk 0:00:51]}  Ke6 {[%clk 0:01:07]} 26. Nf4+ {[%clk 0:00:48]}  Kd6 {[%clk 0:01:05]} 27. Bxd8 {[%clk 0:00:47]}  Rhxd8 {[%clk 0:00:53]} 28. Rxf5 {[%clk 0:00:42]}  Nc5 {[%clk 0:00:43]} 29. Nd3+ {[%clk 0:00:40]}  Ke6 {[%clk 0:00:35]} 30. Qe5+ {[%clk 0:00:37]}  Kd7 {[%clk 0:00:35]} 31. Rxf7+ {[%clk 0:00:38]}  Kc6 {[%clk 0:00:34]} 32. Qxc5# {[%clk 0:00:37]} 1-0


[Site "https://www.chess.com"]

[Event "Titled Tuesday Blitz June 14 Early 2022"]
[White "Dubov, Daniil"]
[Black "Hakobyan, Aram"]
[WhiteFideId "24126055"]
[BlackFideId "13306677"]
[WhiteElo "2791"]
[BlackElo "2557"]
[Result "1-0"]
[Round "06"]
[TimeControl "180+1"]
[Date "2022.06.14"]
[WhiteClock "0:00:06"]
[BlackClock "0:00:06"]

1. d4 {[%clk 0:03:00]}  d5 {[%clk 0:03:00]} 2. c4 {[%clk 0:03:00]}  e6 {[%clk 0:03:00]} 3. Nf3 {[%clk 0:02:59]}  Nf6 {[%clk 0:02:56]} 4. g3 {[%clk 0:03:00]}  Be7 {[%clk 0:02:48]} 5. Bg2 {[%clk 0:02:59]}  O-O {[%clk 0:02:49]} 6. O-O {[%clk 0:03:00]}  dxc4 {[%clk 0:02:49]} 7. Qc2 {[%clk 0:02:59]}  b5 {[%clk 0:02:48]} 8. a4 {[%clk 0:02:57]}  b4 {[%clk 0:02:48]} 9. Nbd2 {[%clk 0:02:52]}  Bb7 {[%clk 0:02:46]} 10. Nxc4 {[%clk 0:02:52]}  c5 {[%clk 0:02:45]} 11. dxc5 {[%clk 0:02:52]}  Be4 {[%clk 0:02:45]} 12. Qd2 {[%clk 0:02:51]}  Bxc5 {[%clk 0:02:44]} 13. Nfe5 {[%clk 0:02:46]}  Bxg2 {[%clk 0:02:36]} 14. Qxd8 {[%clk 0:02:40]}  Rxd8 {[%clk 0:02:37]} 15. Kxg2 {[%clk 0:02:40]}  Nbd7 {[%clk 0:02:33]} 16. Nd3 {[%clk 0:01:52]}  Rac8 {[%clk 0:02:30]} 17. Na5 {[%clk 0:01:38]}  Bf8 {[%clk 0:02:12]} 18. Be3 {[%clk 0:01:26]}  Nb6 {[%clk 0:02:00]} 19. Rfc1 {[%clk 0:01:11]}  Nfd5 {[%clk 0:01:54]} 20. Bxb6 {[%clk 0:01:06]}  Nxb6 {[%clk 0:01:48]} 21. Nc6 {[%clk 0:01:02]}  Rd6 {[%clk 0:01:10]} 22. Nxa7 {[%clk 0:00:54]}  Rxc1 {[%clk 0:00:35]} 23. Nxc1 {[%clk 0:00:55]}  Nc4 {[%clk 0:00:35]} 24. Nd3 {[%clk 0:00:44]}  Ra6 {[%clk 0:00:33]} 25. Nb5 {[%clk 0:00:43]}  b3 {[%clk 0:00:33]} 26. Nd4 {[%clk 0:00:40]}  Nd2 {[%clk 0:00:13]} 27. a5 {[%clk 0:00:27]}  g5 {[%clk 0:00:13]} 28. Rd1 {[%clk 0:00:26]}  Nc4 {[%clk 0:00:11]} 29. Nxb3 {[%clk 0:00:26]}  Kg7 {[%clk 0:00:05]} 30. Rc1 {[%clk 0:00:24]}  Nd6 {[%clk 0:00:03]} 31. Rc7 {[%clk 0:00:18]}  Nb5 {[%clk 0:00:03]} 32. Rb7 {[%clk 0:00:17]}  Nd6 {[%clk 0:00:03]} 33. Rd7 {[%clk 0:00:17]}  Nc4 {[%clk 0:00:03]} 34. Rd4 {[%clk 0:00:12]}  Nd6 {[%clk 0:00:01]} 35. Ndc5 {[%clk 0:00:12]}  Ra8 {[%clk 0:00:02]} 36. a6 {[%clk 0:00:12]}  Nb5 {[%clk 0:00:02]} 37. Rd7 {[%clk 0:00:12]}  Kg6 {[%clk 0:00:01]} 38. Rb7 {[%clk 0:00:12]}  Nd6 {[%clk 0:00:02]} 39. Rd7 {[%clk 0:00:11]}  Nb5 {[%clk 0:00:02]} 40. Rb7 {[%clk 0:00:08]}  Nd6 {[%clk 0:00:02]} 41. Rb4 {[%clk 0:00:08]}  Nf5 {[%clk 0:00:02]} 42. Ra4 {[%clk 0:00:08]}  Ne7 {[%clk 0:00:03]} 43. Nd7 {[%clk 0:00:06]}  Nd5 {[%clk 0:00:03]} 44. Ne5+ {[%clk 0:00:06]}  Kg7 {[%clk 0:00:03]} 45. Nc4 {[%clk 0:00:06]}  Be7 {[%clk 0:00:03]} 46. Nd4 {[%clk 0:00:07]}  Nc7 {[%clk 0:00:04]} 47. Nc6 {[%clk 0:00:06]}  Bc5 {[%clk 0:00:04]} 48. a7 {[%clk 0:00:07]}  Nb5 {[%clk 0:00:04]} 49. Ra5 {[%clk 0:00:07]}  Nxa7 {[%clk 0:00:05]} 50. Rxc5 {[%clk 0:00:06]}  Rc8 {[%clk 0:00:05]} 51. N4a5 {[%clk 0:00:06]}  Kf6 {[%clk 0:00:04]} 52. b4 {[%clk 0:00:05]}  Rc7 {[%clk 0:00:05]} 53. Nxa7 {[%clk 0:00:05]}  Rxa7 {[%clk 0:00:05]} 54. Rc2 {[%clk 0:00:05]}  Rb7 {[%clk 0:00:05]} 55. Rb2 {[%clk 0:00:05]}  Rb5 {[%clk 0:00:06]} 56. Nc4 {[%clk 0:00:05]}  h5 {[%clk 0:00:06]} 57. Na3 {[%clk 0:00:05]}  Rb8 {[%clk 0:00:07]} 58. b5 {[%clk 0:00:06]}  Ke5 {[%clk 0:00:07]} 59. b6 {[%clk 0:00:06]}  Kd5 {[%clk 0:00:08]} 60. b7 {[%clk 0:00:06]}  Kc6 {[%clk 0:00:09]} 61. Nc4 {[%clk 0:00:06]}  f6 {[%clk 0:00:09]} 62. Kf3 {[%clk 0:00:05]}  Kc5 {[%clk 0:00:10]} 63. Ne3 {[%clk 0:00:05]}  f5 {[%clk 0:00:10]} 64. h3 {[%clk 0:00:05]}  Kd4 {[%clk 0:00:10]} 65. h4 {[%clk 0:00:04]}  g4+ {[%clk 0:00:10]} 66. Kf4 {[%clk 0:00:05]}  Kc3 {[%clk 0:00:10]} 67. Rb6 {[%clk 0:00:04]}  Kd2 {[%clk 0:00:11]} 68. Nxf5 {[%clk 0:00:03]}  exf5 {[%clk 0:00:10]} 69. Kxf5 {[%clk 0:00:04]}  Kxe2 {[%clk 0:00:11]} 70. Kf4 {[%clk 0:00:04]}  Kxf2 {[%clk 0:00:11]} 71. Rb2+ {[%clk 0:00:04]}  Kg1 {[%clk 0:00:11]} 72. Kg5 {[%clk 0:00:05]}  Rxb7 {[%clk 0:00:06]} 73. Rxb7 {[%clk 0:00:04]}  Kh2 {[%clk 0:00:07]} 74. Rb3 {[%clk 0:00:04]}  Kg2 {[%clk 0:00:06]} 75. Kxh5 {[%clk 0:00:04]}  Kh3 {[%clk 0:00:07]} 76. Kg5 {[%clk 0:00:05]}  Kg2 {[%clk 0:00:06]} 77. h5 {[%clk 0:00:06]} 1-0


[Site "https://www.chess.com"]

[Event "Titled Tuesday Blitz June 14 Early 2022"]
[White "Durarbayli, Vasif"]
[Black "Csonka, Balazs"]
[WhiteFideId "13402935"]
[BlackFideId "742910"]
[WhiteElo "2528"]
[BlackElo "2404"]
[Result "1-0"]
[Round "06"]
[TimeControl "180+1"]
[Date "2022.06.14"]
[WhiteClock "0:00:11"]
[BlackClock "0:00:06"]

1. e4 {[%clk 0:03:00]}  c5 {[%clk 0:02:59]} 2. Nf3 {[%clk 0:03:00]}  Nc6 {[%clk 0:03:00]} 3. Bb5 {[%clk 0:03:00]}  e6 {[%clk 0:02:57]} 4. O-O {[%clk 0:02:59]}  Nge7 {[%clk 0:02:56]} 5. Re1 {[%clk 0:03:00]}  Nd4 {[%clk 0:02:45]} 6. Nxd4 {[%clk 0:02:55]}  cxd4 {[%clk 0:02:46]} 7. c3 {[%clk 0:02:56]}  a6 {[%clk 0:02:45]} 8. Bf1 {[%clk 0:02:56]}  Nc6 {[%clk 0:02:45]} 9. Qg4 {[%clk 0:02:52]}  g6 {[%clk 0:02:38]} 10. e5 {[%clk 0:02:41]}  Qb6 {[%clk 0:02:13]} 11. Na3 {[%clk 0:02:39]}  Bxa3 {[%clk 0:01:52]} 12. bxa3 {[%clk 0:02:40]}  Qc5 {[%clk 0:01:43]} 13. Qf4 {[%clk 0:02:14]}  b5 {[%clk 0:01:33]} 14. Rb1 {[%clk 0:01:31]}  O-O {[%clk 0:01:00]} 15. cxd4 {[%clk 0:01:20]}  Qxd4 {[%clk 0:00:52]} 16. Re4 {[%clk 0:01:12]}  Qc5 {[%clk 0:00:52]} 17. d4 {[%clk 0:01:06]}  Qc2 {[%clk 0:00:52]} 18. Rb2 {[%clk 0:00:54]}  Qc3 {[%clk 0:00:50]} 19. Rb3 {[%clk 0:00:52]}  Qc2 {[%clk 0:00:48]} 20. Rh3 {[%clk 0:00:44]}  f5 {[%clk 0:00:36]} 21. exf6 {[%clk 0:00:40]}  Rf7 {[%clk 0:00:37]} 22. d5 {[%clk 0:00:20]}  Nd8 {[%clk 0:00:35]} 23. Re2 {[%clk 0:00:18]}  Qd1 {[%clk 0:00:23]} 24. dxe6 {[%clk 0:00:09]}  Nxe6 {[%clk 0:00:24]} 25. Qe3 {[%clk 0:00:10]}  Bb7 {[%clk 0:00:20]} 26. Bb2 {[%clk 0:00:10]}  Rc8 {[%clk 0:00:19]} 27. Rd2 {[%clk 0:00:10]}  Qb1 {[%clk 0:00:16]} 28. Rg3 {[%clk 0:00:10]}  Rc2 {[%clk 0:00:13]} 29. Rxc2 {[%clk 0:00:07]}  Qxc2 {[%clk 0:00:14]} 30. Qc3 {[%clk 0:00:08]}  Qxc3 {[%clk 0:00:14]} 31. Bxc3 {[%clk 0:00:08]}  d5 {[%clk 0:00:14]} 32. Rd3 {[%clk 0:00:08]}  d4 {[%clk 0:00:11]} 33. Bxd4 {[%clk 0:00:08]}  Nxd4 {[%clk 0:00:11]} 34. Rxd4 {[%clk 0:00:09]}  Rxf6 {[%clk 0:00:11]} 35. a4 {[%clk 0:00:09]}  bxa4 {[%clk 0:00:05]} 36. Rxa4 {[%clk 0:00:05]}  Rb6 {[%clk 0:00:06]} 37. Bc4+ {[%clk 0:00:03]}  Kg7 {[%clk 0:00:06]} 38. Bb3 {[%clk 0:00:03]}  Bd5 {[%clk 0:00:05]} 39. Ra3 {[%clk 0:00:03]}  Bxb3 {[%clk 0:00:05]} 40. axb3 {[%clk 0:00:04]}  Kf6 {[%clk 0:00:04]} 41. Kf1 {[%clk 0:00:05]}  Ke5 {[%clk 0:00:05]} 42. Ke2 {[%clk 0:00:05]}  Kd4 {[%clk 0:00:05]} 43. Kd2 {[%clk 0:00:06]}  Rf6 {[%clk 0:00:04]} 44. f3 {[%clk 0:00:06]}  Re6 {[%clk 0:00:04]} 45. Ra4+ {[%clk 0:00:07]}  Kc5 {[%clk 0:00:05]} 46. Rc4+ {[%clk 0:00:06]}  Kb5 {[%clk 0:00:05]} 47. Re4 {[%clk 0:00:07]}  Rd6+ {[%clk 0:00:03]} 48. Kc3 {[%clk 0:00:07]}  Rc6+ {[%clk 0:00:03]} 49. Kb2 {[%clk 0:00:07]}  Rd6 {[%clk 0:00:03]} 50. Kc3 {[%clk 0:00:06]}  Rc6+ {[%clk 0:00:03]} 51. Rc4 {[%clk 0:00:07]}  Rxc4+ {[%clk 0:00:04]} 52. bxc4+ {[%clk 0:00:07]}  Kc5 {[%clk 0:00:05]} 53. f4 {[%clk 0:00:07]}  a5 {[%clk 0:00:05]} 54. g4 {[%clk 0:00:08]}  a4 {[%clk 0:00:05]} 55. f5 {[%clk 0:00:08]}  gxf5 {[%clk 0:00:05]} 56. gxf5 {[%clk 0:00:09]}  a3 {[%clk 0:00:05]} 57. Kb3 {[%clk 0:00:10]}  a2 {[%clk 0:00:05]} 58. Kxa2 {[%clk 0:00:10]}  Kxc4 {[%clk 0:00:06]} 59. f6 {[%clk 0:00:11]} 1-0


[Site "https://www.chess.com"]

[Event "Titled Tuesday Blitz June 14 Early 2022"]
[White "Grischuk, Alexander"]
[Black "Sanal, Vahap"]
[WhiteFideId "4126025"]
[BlackFideId "6300545"]
[WhiteElo "2762"]
[BlackElo "2574"]
[Result "1-0"]
[Round "06"]
[TimeControl "180+1"]
[Date "2022.06.14"]
[WhiteClock "0:00:21"]
[BlackClock "0:00:02"]

1. d4 {[%clk 0:03:00]}  Nf6 {[%clk 0:03:00]} 2. c4 {[%clk 0:03:00]}  e6 {[%clk 0:03:00]} 3. Nc3 {[%clk 0:03:00]}  Bb4 {[%clk 0:03:00]} 4. e3 {[%clk 0:03:00]}  O-O {[%clk 0:02:59]} 5. Bd3 {[%clk 0:03:00]}  d5 {[%clk 0:02:59]} 6. a3 {[%clk 0:03:00]}  Bxc3+ {[%clk 0:02:56]} 7. bxc3 {[%clk 0:03:01]}  c5 {[%clk 0:02:57]} 8. cxd5 {[%clk 0:03:01]}  exd5 {[%clk 0:02:50]} 9. Ne2 {[%clk 0:03:01]}  b6 {[%clk 0:02:49]} 10. O-O {[%clk 0:03:01]}  Ba6 {[%clk 0:02:49]} 11. f3 {[%clk 0:03:01]}  Re8 {[%clk 0:02:47]} 12. Ng3 {[%clk 0:02:58]}  Bxd3 {[%clk 0:02:44]} 13. Qxd3 {[%clk 0:02:59]}  Nc6 {[%clk 0:02:45]} 14. Bb2 {[%clk 0:02:59]}  Na5 {[%clk 0:02:44]} 15. Rae1 {[%clk 0:02:55]}  Rc8 {[%clk 0:01:43]} 16. e4 {[%clk 0:02:54]}  cxd4 {[%clk 0:01:43]} 17. cxd4 {[%clk 0:02:55]}  Nc4 {[%clk 0:01:37]} 18. Bc1 {[%clk 0:02:34]}  b5 {[%clk 0:01:37]} 19. e5 {[%clk 0:02:31]}  Nd7 {[%clk 0:01:37]} 20. f4 {[%clk 0:02:27]}  Qb6 {[%clk 0:01:37]} 21. Kh1 {[%clk 0:02:25]}  f6 {[%clk 0:00:46]} 22. Qf3 {[%clk 0:02:03]}  Qxd4 {[%clk 0:00:36]} 23. Nf5 {[%clk 0:02:01]}  Qc5 {[%clk 0:00:36]} 24. Qg4 {[%clk 0:02:00]}  Qf8 {[%clk 0:00:33]} 25. Nh6+ {[%clk 0:01:49]}  Kh8 {[%clk 0:00:33]} 26. Qxd7 {[%clk 0:01:50]}  gxh6 {[%clk 0:00:32]} 27. Qxd5 {[%clk 0:01:42]}  Rc5 {[%clk 0:00:19]} 28. Qd4 {[%clk 0:01:23]}  Rd8 {[%clk 0:00:11]} 29. Qa1 {[%clk 0:01:16]}  fxe5 {[%clk 0:00:05]} 30. fxe5 {[%clk 0:01:15]}  Qg7 {[%clk 0:00:06]} 31. Bf4 {[%clk 0:01:09]}  Rg8 {[%clk 0:00:06]} 32. Re2 {[%clk 0:00:57]}  Rd5 {[%clk 0:00:07]} 33. Qc3 {[%clk 0:00:48]}  h5 {[%clk 0:00:07]} 34. Qf3 {[%clk 0:00:47]}  Rd4 {[%clk 0:00:05]} 35. e6 {[%clk 0:00:45]}  h4 {[%clk 0:00:02]} 36. h3 {[%clk 0:00:43]}  Rdd8 {[%clk 0:00:02]} 37. Qc6 {[%clk 0:00:38]}  Rde8 {[%clk 0:00:02]} 38. Qxb5 {[%clk 0:00:35]}  Qd4 {[%clk 0:00:02]} 39. e7 {[%clk 0:00:22]}  Rg7 {[%clk 0:00:02]} 40. Qxe8+ {[%clk 0:00:21]} 1-0


[Site "https://www.chess.com"]

[Event "Titled Tuesday Blitz June 14 Early 2022"]
[White "Hesham, Abdelrahman"]
[Black "Tan, Zhongyi"]
[WhiteFideId "10600183"]
[BlackFideId "8603642"]
[WhiteElo "2506"]
[BlackElo "2510"]
[Result "1-0"]
[Round "06"]
[TimeControl "180+1"]
[Date "2022.06.14"]
[WhiteClock "0:00:05"]
[BlackClock "0:00:02"]

1. e4 {[%clk 0:03:00]}  e5 {[%clk 0:02:59]} 2. Nf3 {[%clk 0:03:00]}  Nf6 {[%clk 0:02:58]} 3. Nxe5 {[%clk 0:02:55]}  d6 {[%clk 0:02:58]} 4. Nf3 {[%clk 0:02:55]}  Nxe4 {[%clk 0:02:58]} 5. d4 {[%clk 0:02:50]}  d5 {[%clk 0:02:57]} 6. Bd3 {[%clk 0:02:49]}  Bd6 {[%clk 0:02:57]} 7. O-O {[%clk 0:02:49]}  O-O {[%clk 0:02:57]} 8. c4 {[%clk 0:02:49]}  c6 {[%clk 0:02:57]} 9. Nc3 {[%clk 0:02:49]}  Nxc3 {[%clk 0:02:51]} 10. bxc3 {[%clk 0:02:50]}  dxc4 {[%clk 0:02:51]} 11. Bxc4 {[%clk 0:02:51]}  Bf5 {[%clk 0:02:50]} 12. Bg5 {[%clk 0:02:44]}  Qa5 {[%clk 0:02:44]} 13. Qd2 {[%clk 0:02:44]}  Be4 {[%clk 0:02:31]} 14. Nh4 {[%clk 0:02:03]}  Nd7 {[%clk 0:02:25]} 15. Rfe1 {[%clk 0:02:03]}  Rae8 {[%clk 0:02:24]} 16. Bf4 {[%clk 0:02:00]}  Bxf4 {[%clk 0:02:11]} 17. Qxf4 {[%clk 0:02:01]}  Qxc3 {[%clk 0:01:55]} 18. Rac1 {[%clk 0:02:01]}  Qxd4 {[%clk 0:01:49]} 19. Nf5 {[%clk 0:01:11]}  Qe5 {[%clk 0:01:34]} 20. Qxe5 {[%clk 0:01:10]}  Rxe5 {[%clk 0:01:31]} 21. Nd6 {[%clk 0:01:10]}  Bd5 {[%clk 0:01:10]} 22. Bxd5 {[%clk 0:01:02]}  cxd5 {[%clk 0:01:04]} 23. Nxb7 {[%clk 0:00:47]}  Rb8 {[%clk 0:01:01]} 24. Na5 {[%clk 0:00:40]}  g6 {[%clk 0:00:43]} 25. Nc6 {[%clk 0:00:36]}  Rxe1+ {[%clk 0:00:41]} 26. Rxe1 {[%clk 0:00:37]}  Rb2 {[%clk 0:00:38]} 27. a4 {[%clk 0:00:34]}  Ra2 {[%clk 0:00:26]} 28. a5 {[%clk 0:00:31]}  Kg7 {[%clk 0:00:23]} 29. g4 {[%clk 0:00:25]}  Nf6 {[%clk 0:00:22]} 30. f3 {[%clk 0:00:25]}  h6 {[%clk 0:00:17]} 31. Re7 {[%clk 0:00:19]}  a6 {[%clk 0:00:11]} 32. Ra7 {[%clk 0:00:19]}  d4 {[%clk 0:00:09]} 33. Nxd4 {[%clk 0:00:18]}  Rxa5 {[%clk 0:00:09]} 34. Ne6+ {[%clk 0:00:19]}  Kg8 {[%clk 0:00:09]} 35. Nd8 {[%clk 0:00:17]}  Ra1+ {[%clk 0:00:06]} 36. Kg2 {[%clk 0:00:16]}  Nd5 {[%clk 0:00:07]} 37. Nxf7 {[%clk 0:00:16]}  h5 {[%clk 0:00:05]} 38. Nh6+ {[%clk 0:00:15]}  Kf8 {[%clk 0:00:04]} 39. gxh5 {[%clk 0:00:14]}  gxh5 {[%clk 0:00:04]} 40. Nf5 {[%clk 0:00:10]}  a5 {[%clk 0:00:04]} 41. Nd4 {[%clk 0:00:10]}  a4 {[%clk 0:00:04]} 42. Kh3 {[%clk 0:00:10]}  a3 {[%clk 0:00:03]} 43. Nc2 {[%clk 0:00:10]}  Ra2 {[%clk 0:00:02]} 44. Nxa3 {[%clk 0:00:10]}  Nf4+ {[%clk 0:00:02]} 45. Kg3 {[%clk 0:00:10]}  Ne2+ {[%clk 0:00:02]} 46. Kh4 {[%clk 0:00:10]}  Nc3 {[%clk 0:00:02]} 47. Kxh5 {[%clk 0:00:06]}  Rxh2+ {[%clk 0:00:02]} 48. Kg4 {[%clk 0:00:06]}  Ra2 {[%clk 0:00:02]} 49. Kf5 {[%clk 0:00:05]}  Ke8 {[%clk 0:00:02]} 50. Ke6 {[%clk 0:00:05]}  Kd8 {[%clk 0:00:02]} 51. f4 {[%clk 0:00:05]}  Kc8 {[%clk 0:00:02]} 52. f5 {[%clk 0:00:05]} 1-0


[Site "https://www.chess.com"]

[Event "Titled Tuesday Blitz June 14 Early 2022"]
[White "Korchmar, Vasiliy"]
[Black "Indjic, Aleksandar"]
[WhiteFideId "24131750"]
[BlackFideId "911925"]
[WhiteElo "2370"]
[BlackElo "2616"]
[Result "1-0"]
[Round "06"]
[TimeControl "180+1"]
[Date "2022.06.14"]
[WhiteClock "0:00:04"]
[BlackClock "0:00:35"]

1. e4 {[%clk 0:03:00]}  e5 {[%clk 0:02:59]} 2. Nf3 {[%clk 0:03:01]}  Nc6 {[%clk 0:02:59]} 3. Nc3 {[%clk 0:03:01]}  Nf6 {[%clk 0:02:57]} 4. h3 {[%clk 0:03:01]}  Bb4 {[%clk 0:02:47]} 5. Nd5 {[%clk 0:03:00]}  O-O {[%clk 0:02:47]} 6. Nxb4 {[%clk 0:02:56]}  Nxb4 {[%clk 0:02:45]} 7. c3 {[%clk 0:02:56]}  Nc6 {[%clk 0:02:44]} 8. d3 {[%clk 0:02:57]}  d5 {[%clk 0:02:43]} 9. Qc2 {[%clk 0:02:57]}  h6 {[%clk 0:02:41]} 10. Be2 {[%clk 0:02:52]}  a5 {[%clk 0:02:40]} 11. a4 {[%clk 0:02:47]}  b6 {[%clk 0:02:29]} 12. O-O {[%clk 0:02:47]}  Re8 {[%clk 0:02:27]} 13. Rd1 {[%clk 0:02:45]}  Ba6 {[%clk 0:02:18]} 14. b3 {[%clk 0:02:40]}  Qd7 {[%clk 0:02:14]} 15. Nh4 {[%clk 0:02:30]}  Ne7 {[%clk 0:02:11]} 16. Be3 {[%clk 0:02:27]}  c5 {[%clk 0:02:07]} 17. d4 {[%clk 0:02:17]}  Bxe2 {[%clk 0:02:05]} 18. Qxe2 {[%clk 0:02:18]}  Nxe4 {[%clk 0:02:04]} 19. Rac1 {[%clk 0:02:05]}  Nxc3 {[%clk 0:01:45]} 20. Rxc3 {[%clk 0:02:03]}  exd4 {[%clk 0:01:45]} 21. Bxd4 {[%clk 0:01:53]}  cxd4 {[%clk 0:01:45]} 22. Rg3 {[%clk 0:01:54]}  Ng6 {[%clk 0:01:38]} 23. Qh5 {[%clk 0:01:48]}  Nf4 {[%clk 0:01:32]} 24. Rxg7+ {[%clk 0:01:30]}  Kxg7 {[%clk 0:01:33]} 25. Nf5+ {[%clk 0:01:30]}  Kf6 {[%clk 0:01:33]} 26. Qh4+ {[%clk 0:01:18]}  Kg6 {[%clk 0:01:23]} 27. Qg4+ {[%clk 0:00:33]}  Kf6 {[%clk 0:01:20]} 28. Qg7+ {[%clk 0:00:25]}  Kxf5 {[%clk 0:01:13]} 29. g4+ {[%clk 0:00:08]}  Ke4 {[%clk 0:01:05]} 30. Qxd4+ {[%clk 0:00:04]}  Kf3 {[%clk 0:01:02]} 31. Qc3+ {[%clk 0:00:03]}  Nd3 {[%clk 0:00:53]} 32. Rxd3+ {[%clk 0:00:03]}  Kf4 {[%clk 0:00:39]} 33. Rf3+ {[%clk 0:00:03]}  Kg5 {[%clk 0:00:35]} 34. Qf6# {[%clk 0:00:04]} 1-0


[Site "https://www.chess.com"]